fUST/lending_fUST_20240226
["ID","MTS","AMOUNT","RATE_DAILY","PERIOD"]
[315210956,1708938640306,-500.0,0.00019178,2]
[315210958,1708938640315,-500.0,0.00019178,2]
[315210959,1708938640324,-501.19388928,0.00019178,2]
[315210961,1708938640334,-500.0,0.00019178,2]
[315210962,1708938640343,-500.0,0.00019178,2]
[315210963,1708938640352,-500.0,0.00019178,2]
[315210964,1708938640361,-500.0,0.00019178,2]
[315210965,1708938640371,-500.0,0.00019178,2]
[315210966,1708938640380,-604.73,0.00019178,2]
[315210967,1708938640391,-500.0,0.00019178,2]
[315210970,1708938640509,-500.0,0.00019178,2]
[315210971,1708938640518,-500.0,0.00019178,2]
[315210972,1708938640527,-501.00040851,0.00019178,2]
[315210973,1708938640536,-500.0,0.00019178,2]
[315210974,1708938640546,-500.0,0.00019178,2]
[315210975,1708938640555,-500.0,0.00019178,2]
[315210976,1708938640564,-500.0,0.00019178,2]
[315210977,1708938640574,-588.75636197,0.00019178,2]
[315210978,1708938640583,-500.0,0.00019178,2]
[315210979,1708938640592,-500.0,0.00019178,2]
[315210980,1708938640602,-500.0,0.00019178,2]
[315210981,1708938640611,-500.0,0.00019178,2]
[315210982,1708938640620,-500.76681216,0.00019178,2]
[315210983,1708938640629,-500.0,0.00019178,2]
[315210984,1708938640639,-500.0,0.00019178,2]
[315210985,1708938640648,-500.89874379,0.00019178,2]
[315210986,1708938640657,-359.8403748,0.00019178,2]
[315210987,1708938640667,-501.0884164,0.00019178,2]
[315210988,1708938640677,-500.0,0.00019178,2]
[315210989,1708938640688,-234.57397735,0.00019178,2]
[315210990,1708938640697,-500.0,0.00019178,2]
[315210991,1708938640707,-500.0,0.00019178,2]
[315210992,1708938640716,-500.0,0.00019178,2]
[315210993,1708938640725,-2034.94,0.00019178,2]
[315210994,1708938640735,-500.0,0.00019178,2]
[315210995,1708938640744,-500.0,0.00019178,2]
[315210996,1708938640753,-500.0,0.00019178,2]
[315210997,1708938640762,-500.0,0.00019178,2]
[315210998,1708938640772,-500.0,0.00019178,2]
[315210999,1708938640781,-500.0,0.00019178,2]
[315211000,1708938640790,-500.0,0.00019178,2]
[315211001,1708938640800,-500.3462092,0.00019178,2]
[315211002,1708938640810,-500.0,0.00019178,2]
[315211003,1708938640819,-500.0,0.00019178,2]
[315211004,1708938640828,-500.0,0.00019178,2]
[315211005,1708938640837,-500.0,0.00019178,2]
[315211006,1708938640846,-1629.2,0.00019178,2]
[315211007,1708938640856,-500.58116796,0.00019178,2]
[315211008,1708938640865,-500.0,0.00019178,2]
[315211009,1708938640874,-500.0,0.00019178,2]
[315211010,1708938640883,-500.0,0.00019178,2]
[315211011,1708938640893,-500.0,0.00019178,2]
[315211012,1708938640902,-501.13519098,0.00019178,2]
[315211013,1708938640911,-500.0,0.00019178,2]
[315211014,1708938640920,-500.0,0.00019178,2]
[315211015,1708938640931,-175.10182328,0.00019178,2]
[315211016,1708938640939,-500.0,0.00019178,2]
[315211017,1708938640948,-500.0,0.00019178,2]
[315211018,1708938640958,-500.0,0.00019178,2]
[315211019,1708938640967,-500.0,0.00019178,2]
[315211020,1708938640976,-500.0,0.00019178,2]
[315211021,1708938640986,-500.0,0.00019178,2]
[315211022,1708938640995,-500.0,0.00019178,2]
[315211023,1708938641005,-500.0,0.00019178,2]
[315211024,1708938641017,-151.0,0.00019178,2]
[315211025,1708938641026,-312.51592479,0.00019178,2]
[315211026,1708938641035,-500.0,0.00019178,2]
[315211027,1708938641044,-500.0,0.00019178,2]
[315211028,1708938641053,-500.0,0.00019178,2]
[315211029,1708938641062,-266.51557641,0.00019178,2]
[315211030,1708938641071,-989.96,0.00019178,2]
[315211031,1708938641080,-500.0,0.00019178,2]
[315211032,1708938641091,-507.97,0.00019178,2]
[315211033,1708938641100,-500.0,0.00019178,2]
[315211034,1708938641109,-500.0,0.00019178,2]
[315211035,1708938641118,-500.0,0.00019178,2]
[315211036,1708938641127,-500.0,0.00019178,2]
[315211037,1708938641136,-500.0,0.00019178,2]
[315211038,1708938641145,-500.0,0.00019178,2]
[315211039,1708938641154,-500.0,0.00019178,2]
[315211040,1708938641163,-544.80572393,0.00019178,2]
[315211041,1708938641172,-500.0,0.00019178,2]
[315211042,1708938641183,-1471.03,0.00019178,2]
[315211043,1708938641192,-746.96,0.00019178,2]
[315211044,1708938641202,-500.0,0.00019178,2]
[315211045,1708938641210,-500.0,0.00019178,2]
[315211046,1708938641220,-4108.95,0.00019178,2]
[315211047,1708938641228,-500.0,0.00019178,2]
[315211048,1708938641237,-500.0,0.00019178,2]
[315211049,1708938641246,-500.0,0.00019178,2]
[315211050,1708938641255,-500.0,0.00019178,2]
[315211051,1708938641264,-500.0,0.00019178,2]
[315211052,1708938641273,-500.0,0.00019178,2]
[315211053,1708938641282,-500.0,0.00019178,2]
[315211054,1708938641290,-2939.42,0.00019178,2]
[315211055,1708938641299,-500.0,0.00019178,2]
[315211056,1708938641308,-500.0,0.00019178,2]
[315211057,1708938641317,-500.0,0.00019178,2]
[315211058,1708938641326,-1427.61,0.00019178,2]
[315211059,1708938641335,-2807.22,0.00019178,2]
[315211060,1708938641344,-500.0,0.00019178,2]
[315211061,1708938641354,-500.0,0.00019178,2]
[315211062,1708938641363,-500.0,0.00019178,2]
[315211063,1708938641372,-840.8,0.00019178,2]
[315211064,1708938641381,-640.38620748,0.00019178,2]
[315211065,1708938641390,-212.2436076,0.00019178,2]
[315211066,1708938641400,-841.8,0.00019178,2]
[315211067,1708938641409,-566.16513416,0.00019178,2]
[315211068,1708938641418,-500.0,0.00019178,2]
[315211069,1708938641428,-501.16145419,0.00019178,2]
[315211070,1708938641438,-1000.0,0.00019178,2]
[315211071,1708938641447,-500.0,0.00019178,2]
[315211072,1708938641456,-1899.13,0.00019178,2]
[315211074,1708938641466,-500.0,0.00019178,2]
[315211075,1708938641475,-500.0,0.00019178,2]
[315211077,1708938641485,-500.0,0.00019178,2]
[315211079,1708938641494,-2159.56,0.00019178,2]
[315211081,1708938641502,-500.0,0.00019178,2]
[315211082,1708938641511,-500.0,0.00019178,2]
[315211083,1708938641520,-500.0,0.00019178,2]
[315211084,1708938641531,-2617.62,0.00019178,2]
[315211085,1708938641539,-500.0,0.00019178,2]
[315211086,1708938641548,-500.0,0.00019178,2]
[315211087,1708938641557,-500.0,0.00019178,2]
[315211088,1708938641566,-249.09722205,0.00019178,2]
[315211089,1708938641575,-500.0,0.00019178,2]
[315211090,1708938641584,-510.75269847,0.00019178,2]
[315211091,1708938641593,-500.0,0.00019178,2]
[315211092,1708938641602,-500.0,0.00019178,2]
[315211093,1708938641611,-500.0,0.00019178,2]
[315211094,1708938641620,-2120.6,0.00019178,2]
[315211095,1708938641630,-500.0,0.00019178,2]
[315211096,1708938641639,-500.0,0.00019178,2]
[315211097,1708938641648,-268.97832651,0.00019178,2]
[315211098,1708938641657,-23489.31,0.00019178,2]
[315211099,1708938641667,-500.0,0.00019178,2]
[315211100,1708938641676,-501.16229543,0.00019178,2]
[315211101,1708938641686,-573.72782983,0.00019178,2]
[315211102,1708938641695,-501.12566577,0.00019178,2]
[315211103,1708938641704,-500.0,0.00019178,2]
[315211104,1708938641714,-500.0,0.00019178,2]
[315211105,1708938641723,-11386.17,0.00019178,2]
[315211106,1708938641732,-500.0,0.00019178,2]
[315211107,1708938641742,-500.0,0.00019178,2]
[315211108,1708938641751,-500.0,0.00019178,2]
[315211109,1708938641760,-500.0,0.00019178,2]
[315211110,1708938641769,-500.0,0.00019178,2]
[315211111,1708938641778,-4407.44,0.00019178,2]
[315211112,1708938641787,-1005.8616059,0.00019178,2]
[315211113,1708938641796,-500.0,0.00019178,2]
[315211114,1708938641805,-2326.15,0.00019178,2]
[315211115,1708938641816,-500.0,0.00019178,2]
[315211116,1708938641825,-500.0,0.00019178,2]
[315211117,1708938641834,-500.0,0.00019178,2]
[315211118,1708938641843,-500.0,0.00019178,2]
[315211119,1708938641853,-500.0,0.00019178,2]
[315211120,1708938641863,-500.0,0.00019178,2]
[315211121,1708938641873,-500.20438763,0.00019178,2]
[315211122,1708938641883,-500.0,0.00019178,2]
[315211123,1708938641893,-500.0,0.00019178,2]
[315211124,1708938641902,-500.0,0.00019178,2]
[315211125,1708938641911,-500.0,0.00019178,2]
[315211126,1708938641921,-500.0,0.00019178,2]
[315211127,1708938641931,-500.87195388,0.00019178,2]
[315211128,1708938641940,-468.27333622,0.00019178,2]
[315211129,1708938641950,-887.03,0.00019178,2]
[315211130,1708938641959,-518.49613271,0.00019178,2]
[315211131,1708938641968,-500.0,0.00019178,2]
[315211132,1708938641977,-641.27,0.00019178,2]
[315211133,1708938641986,-641.27,0.00019178,2]
[315211134,1708938641995,-641.27,0.00019178,2]
[315211135,1708938642006,-641.27,0.00019178,2]
[315211136,1708938642019,-641.27,0.00019178,2]
[315211137,1708938642029,-641.27,0.00019178,2]
[315211138,1708938642039,-500.0,0.00019178,2]
[315211139,1708938642048,-2282.25,0.00019178,2]
[315211140,1708938642058,-2539.48,0.00019178,2]
[315211141,1708938642067,-500.0,0.00019178,2]
[315211142,1708938642076,-500.0,0.00019178,2]
[315211143,1708938642084,-500.0,0.00019178,2]
[315211144,1708938642095,-500.0,0.00019178,2]
[315211145,1708938642104,-723.84,0.00019178,2]
[315211146,1708938642114,-1827.27,0.00019178,2]
[315211147,1708938642122,-500.0,0.00019178,2]
[315211148,1708938642132,-500.0,0.00019178,2]
[315211149,1708938642141,-501.56333098,0.00019178,2]
[315211150,1708938642150,-500.0,0.00019178,2]
[315211151,1708938642159,-500.0,0.00019178,2]
[315211152,1708938642168,-511.41656817,0.00019178,2]
[315211153,1708938642177,-500.0,0.00019178,2]
[315211154,1708938642188,-500.00000043,0.00019178,2]
[315211155,1708938642197,-500.0,0.00019178,2]
[315211156,1708938642206,-500.0,0.00019178,2]
[315211157,1708938642215,-8314.43,0.00019178,2]
[315211158,1708938642224,-500.0,0.00019178,2]
[315211159,1708938642234,-625.93045909,0.00019178,2]
[315211160,1708938642242,-566.42558314,0.00019178,2]
[315211161,1708938642252,-1304.21,0.00019178,2]
[315211162,1708938642261,-3660.51,0.00019178,2]
[315211163,1708938642270,-877.03,0.00019178,2]
[315211164,1708938642279,-500.0,0.00019178,2]
[315211165,1708938642288,-22954.39,0.00019178,2]
[315211166,1708938642298,-500.0,0.00019178,2]
[315211167,1708938642307,-1491.9,0.00019178,2]
[315211168,1708938642315,-500.0,0.00019178,2]
[315211169,1708938642324,-500.0,0.00019178,2]
[315211170,1708938642333,-500.0,0.00019178,2]
[315211171,1708938642343,-656.21,0.00019178,2]
[315211172,1708938642352,-500.0,0.00019178,2]
[315211173,1708938642361,-500.0,0.00019178,2]
[315211174,1708938642370,-500.0,0.00019178,2]
[315211175,1708938642379,-500.0,0.00019178,2]
[315211176,1708938642388,-500.0,0.00019178,2]
[315211177,1708938642397,-500.0,0.00019178,2]
[315211178,1708938642407,-1656.9,0.00019178,2]
[315211179,1708938642416,-400.24472666,0.00019178,2]
[315211180,1708938642425,-165.843375,0.00019178,2]
[315211181,1708938642435,-165.747356,0.00019178,2]
[315211182,1708938642444,-166.666666,0.00019178,2]
[315211183,1708938642453,-402.5740048,0.000192,2]
[315211184,1708938642462,-200.5826354,0.0001937,2]
[315211185,1708938642471,-153.0,0.0001937,2]
[315211186,1708938642480,-153.0,0.0001937,2]
[315211187,1708938642490,-401.1652708,0.00019397,2]
[315211188,1708938642499,-153.0,0.00019397,2]
[315211189,1708938642508,-748.4774582,0.0001945,2]
[315211190,1708938642517,-200.86010344,0.00019451,2]
[315211191,1708938642526,-500.0,0.00019451,2]
[315211192,1708938642535,-500.0,0.00019451,2]
[315211193,1708938642544,-500.0,0.00019451,2]
[315211194,1708938642554,-500.0,0.00019451,2]
[315211195,1708938642563,-500.0,0.00019451,2]
[315211196,1708938642572,-500.0,0.00019451,2]
[315211197,1708938642581,-500.0,0.00019451,2]
[315211198,1708938642590,-599.3898383,0.00019451,2]
[315211199,1708938642600,-500.0,0.00019451,2]
[315211200,1708938642609,-500.0,0.00019451,2]
[315211201,1708938642618,-500.0,0.00019451,2]
[315211202,1708938642627,-641.27,0.00019451,2]
[315211203,1708938642637,-641.27,0.00019451,2]
[315211204,1708938642646,-641.27,0.00019451,2]
[315211205,1708938642656,-500.0,0.00019452,2]
[315211206,1708938642665,-500.0,0.00019452,2]
[315211207,1708938642675,-501.7897385,0.00019452,2]
[315211208,1708938642687,-500.0,0.00019452,2]
[315211209,1708938642697,-500.0,0.00019452,2]
[315211210,1708938642707,-500.0,0.00019452,2]
[315211211,1708938642717,-500.0,0.00019452,2]
[315211212,1708938642726,-1250.73,0.00019452,2]
[315211213,1708938642735,-500.0,0.00019452,2]
[315211214,1708938642744,-500.0,0.00019452,2]
[315211215,1708938642754,-500.0,0.00019452,2]
[315211216,1708938642764,-539.47583065,0.00019452,2]
[315211219,1708938642862,-506.01947048,0.00019452,2]
[315211220,1708938642872,-201.81516256,0.00019452,2]
[315211221,1708938642881,-500.0,0.00019452,2]
[315211222,1708938642890,-500.0,0.00019452,2]
[315211223,1708938642900,-405.80118565,0.00019452,2]
[315211224,1708938642910,-500.0,0.00019452,2]
[315211225,1708938642919,-500.0,0.00019452,2]
[315211226,1708938642928,-185.27418586,0.00019452,2]
[315211227,1708938642940,-502.11011131,0.00019452,2]
[315211228,1708938642949,-501.82744386,0.00019452,2]
[315211229,1708938642958,-500.0,0.00019452,2]
[315211230,1708938642967,-500.0,0.00019452,2]
[315211231,1708938642977,-502.48047561,0.00019452,2]
[315211232,1708938642986,-1733.61,0.00019452,2]
[315211233,1708938642995,-728.38,0.00019452,2]
[315211234,1708938643005,-500.0,0.00019452,2]
[315211235,1708938643015,-500.0,0.00019452,2]
[315211236,1708938643025,-500.0,0.00019452,2]
[315211237,1708938643034,-360.90910848,0.00019452,2]
[315211238,1708938643043,-476.90194368,0.00019452,2]
[315211239,1708938643052,-473.61063413,0.00019452,2]
[315211240,1708938643062,-500.0,0.00019452,2]
[315211241,1708938643071,-551.4523923,0.00019452,2]
[315211242,1708938643080,-666.81,0.00019452,2]
[315211243,1708938643089,-500.0,0.00019452,2]
[315211244,1708938643100,-500.0,0.00019452,2]
[315211245,1708938643110,-500.0,0.00019452,2]
[315211246,1708938643119,-500.0,0.00019452,2]
[315211247,1708938643128,-500.0,0.00019452,2]
[315211248,1708938643137,-500.0,0.00019452,2]
[315211249,1708938643146,-502.20415089,0.00019452,2]
[315211250,1708938643155,-500.0,0.00019452,2]
[315211251,1708938643164,-500.0,0.00019452,2]
[315211252,1708938643173,-500.0,0.00019452,2]
[315211253,1708938643182,-604.73,0.00019452,2]
[315211254,1708938643191,-500.0,0.00019452,2]
[315211255,1708938643200,-502.89262175,0.00019452,2]
[315211256,1708938643209,-500.0,0.00019452,2]
[315211257,1708938643218,-607.75992688,0.00019452,2]
[315211258,1708938643227,-500.0,0.00019452,2]
[315211259,1708938643236,-500.0,0.00019452,2]
[315211260,1708938643245,-500.0,0.00019452,2]
[315211261,1708938643253,-500.0,0.00019452,2]
[315211262,1708938643262,-500.0,0.00019452,2]
[315211263,1708938643272,-504.12794573,0.00019452,2]
[315211264,1708938643281,-500.0,0.00019452,2]
[315211265,1708938643290,-500.0,0.00019452,2]
[315211266,1708938643299,-500.0,0.00019452,2]
[315211267,1708938643308,-500.0,0.00019452,2]
[315211268,1708938643317,-500.0,0.00019452,2]
[315211269,1708938643326,-500.79176669,0.00019452,2]
[315211270,1708938643335,-500.0,0.00019452,2]
[315211271,1708938643344,-2034.94,0.00019452,2]
[315211272,1708938643353,-500.0,0.00019452,2]
[315211273,1708938643362,-500.94944783,0.00019452,2]
[315211274,1708938643371,-500.63508727,0.00019452,2]
[315211275,1708938643380,-500.0,0.00019452,2]
[315211276,1708938643389,-500.0,0.00019452,2]
[315211277,1708938643398,-500.0,0.00019452,2]
[315211278,1708938643407,-500.0,0.00019452,2]
[315211279,1708938643416,-631.67993521,0.00019452,2]
[315211280,1708938643425,-500.0,0.00019452,2]
[315211281,1708938643435,-500.0,0.00019452,2]
[315211282,1708938643445,-500.0,0.00019452,2]
[315211283,1708938643454,-1629.2,0.00019452,2]
[315211284,1708938643463,-500.0,0.00019452,2]
[315211285,1708938643472,-500.0,0.00019452,2]
[315211286,1708938643481,-474.48126572,0.00019452,2]
[315211287,1708938643491,-500.0,0.00019452,2]
[315211288,1708938643500,-500.0,0.00019452,2]
[315211289,1708938643509,-500.0,0.00019452,2]
[315211290,1708938643519,-500.0,0.00019452,2]
[315211291,1708938643529,-500.0,0.00019452,2]
[315211292,1708938643538,-500.0,0.00019452,2]
[315211293,1708938643547,-500.0,0.00019452,2]
[315211294,1708938643556,-500.0,0.00019452,2]
[315211295,1708938643565,-500.0,0.00019452,2]
[315211296,1708938643575,-500.0,0.00019452,2]
[315211297,1708938643584,-500.0,0.00019452,2]
[315211298,1708938643593,-151.48714558,0.00019452,2]
[315211299,1708938643602,-500.0,0.00019452,2]
[315211300,1708938643611,-500.0,0.00019452,2]
[315211301,1708938643620,-500.0,0.00019452,2]
[315211302,1708938643629,-989.96,0.00019452,2]
[315211303,1708938643638,-500.0,0.00019452,2]
[315211304,1708938643647,-507.97,0.00019452,2]
[315211305,1708938643657,-500.0,0.00019452,2]
[315211306,1708938643666,-500.0,0.00019452,2]
[315211307,1708938643674,-500.0,0.00019452,2]
[315211308,1708938643685,-500.0,0.00019452,2]
[315211309,1708938643694,-500.0,0.00019452,2]
[315211310,1708938643703,-500.0,0.00019452,2]
[315211311,1708938643712,-500.0,0.00019452,2]
[315211312,1708938643721,-500.0,0.00019452,2]
[315211313,1708938643731,-1471.03,0.00019452,2]
[315211314,1708938643740,-746.96,0.00019452,2]
[315211315,1708938643749,-500.85128667,0.00019452,2]
[315211316,1708938643759,-500.0,0.00019452,2]
[315211317,1708938643768,-4108.95,0.00019452,2]
[315211318,1708938643777,-500.0,0.00019452,2]
[315211319,1708938643786,-500.0,0.00019452,2]
[315211320,1708938643794,-500.0,0.00019452,2]
[315211321,1708938643804,-500.0,0.00019452,2]
[315211322,1708938643813,-500.0,0.00019452,2]
[315211323,1708938643823,-499.53437694,0.00019452,2]
[315211324,1708938643832,-2939.42,0.00019452,2]
[315211325,1708938643841,-500.0,0.00019452,2]
[315211326,1708938643850,-500.0,0.00019452,2]
[315211327,1708938643859,-1427.61,0.00019452,2]
[315211328,1708938643868,-2807.22,0.00019452,2]
[315211329,1708938643877,-500.0,0.00019452,2]
[315211330,1708938643886,-500.0,0.00019452,2]
[315211331,1708938643895,-840.8,0.00019452,2]
[315211332,1708938643904,-841.8,0.00019452,2]
[315211333,1708938643914,-500.0,0.00019452,2]
[315211334,1708938643923,-1000.0,0.00019452,2]
[315211335,1708938643933,-500.0,0.00019452,2]
[315211336,1708938643941,-1899.13,0.00019452,2]
[315211337,1708938643950,-500.0,0.00019452,2]
[315211338,1708938643959,-500.0,0.00019452,2]
[315211339,1708938643968,-2159.56,0.00019452,2]
[315211340,1708938643977,-500.0,0.00019452,2]
[315211341,1708938643986,-500.0,0.00019452,2]
[315211342,1708938643995,-500.0,0.00019452,2]
[315211343,1708938644006,-2617.62,0.00019452,2]
[315211344,1708938644015,-249.10033961,0.00019452,2]
[315211345,1708938644025,-500.0,0.00019452,2]
[315211346,1708938644034,-500.0,0.00019452,2]
[315211347,1708938644043,-500.0,0.00019452,2]
[315211348,1708938644053,-442.24473459,0.00019452,2]
[315211349,1708938644062,-500.0,0.00019452,2]
[315211350,1708938644070,-2120.6,0.00019452,2]
[315211351,1708938644079,-500.0,0.00019452,2]
[315211352,1708938644088,-612.23784616,0.00019452,2]
[315211353,1708938644098,-23489.31,0.00019452,2]
[315211354,1708938644107,-500.0,0.00019452,2]
[315211355,1708938644117,-503.32885852,0.00019452,2]
[315211356,1708938644126,-500.0,0.00019452,2]
[315211357,1708938644135,-810.1601,0.00019452,2]
[315211358,1708938644144,-11386.17,0.00019452,2]
[315211359,1708938644153,-810.1601,0.00019452,2]
[315211360,1708938644162,-500.0,0.00019452,2]
[315211361,1708938644171,-500.0,0.00019452,2]
[315211362,1708938644181,-500.0,0.00019452,2]
[315211363,1708938644190,-500.0,0.00019452,2]
[315211364,1708938644199,-500.0,0.00019452,2]
[315211365,1708938644208,-4407.44,0.00019452,2]
[315211366,1708938644218,-500.0,0.00019452,2]
[315211367,1708938644227,-2326.15,0.00019452,2]
[315211368,1708938644237,-500.0,0.00019452,2]
[315211369,1708938644246,-500.0,0.00019452,2]
[315211370,1708938644255,-500.0,0.00019452,2]
[315211371,1708938644264,-500.0,0.00019452,2]
[315211372,1708938644274,-500.0,0.00019452,2]
[315211373,1708938644283,-500.0,0.00019452,2]
[315211374,1708938644292,-500.0,0.00019452,2]
[315211375,1708938644301,-501.32910414,0.00019452,2]
[315211376,1708938644310,-500.0,0.00019452,2]
[315211377,1708938644318,-500.0,0.00019452,2]
[315211378,1708938644327,-887.03,0.00019452,2]
[315211379,1708938644336,-500.0,0.00019452,2]
[315211380,1708938644345,-500.0,0.00019452,2]
[315211381,1708938644354,-2282.25,0.00019452,2]
[315211382,1708938644363,-500.0,0.00019452,2]
[315211383,1708938644372,-2539.48,0.00019452,2]
[315211384,1708938644382,-500.0,0.00019452,2]
[315211385,1708938644391,-509.9265336,0.00019452,2]
[315211386,1708938644399,-500.0,0.00019452,2]
[315211387,1708938644409,-723.84,0.00019452,2]
[315211388,1708938644418,-1827.27,0.00019452,2]
[315211389,1708938644426,-500.0,0.00019452,2]
[315211390,1708938644437,-479.17651164,0.00019452,2]
[315211391,1708938644446,-500.0,0.00019452,2]
[315211392,1708938644455,-500.0,0.00019452,2]
[315211393,1708938644465,-500.0,0.00019452,2]
[315211394,1708938644474,-500.0,0.00019452,2]
[315211395,1708938644484,-500.0,0.00019452,2]
[315211396,1708938644493,-8314.43,0.00019452,2]
[315211397,1708938644502,-500.0,0.00019452,2]
[315211398,1708938644511,-1304.21,0.00019452,2]
[315211399,1708938644521,-3660.51,0.00019452,2]
[315211400,1708938644530,-877.03,0.00019452,2]
[315211401,1708938644539,-500.0,0.00019452,2]
[315211402,1708938644547,-22954.39,0.00019452,2]
[315211403,1708938644556,-500.0,0.00019452,2]
[315211404,1708938644565,-1491.9,0.00019452,2]
[315211405,1708938644574,-500.0,0.00019452,2]
[315211406,1708938644583,-500.0,0.00019452,2]
[315211408,1708938644592,-656.21,0.00019452,2]
[315211409,1708938644601,-500.0,0.00019452,2]
[315211410,1708938644610,-500.0,0.00019452,2]
[315211411,1708938644619,-502.15505867,0.00019452,2]
[315211412,1708938644628,-500.0,0.00019452,2]
[315211413,1708938644638,-500.0,0.00019452,2]
[315211415,1708938644647,-182.85476532,0.00019474,2]
[315211417,1708938644656,-7330.41372259,0.00019486,2]
[315211419,1708938644665,-182.85476532,0.00019487,2]
[315211420,1708938644674,-7330.41372259,0.00019487,2]
[315211421,1708938644683,-7330.41372259,0.00019489,2]
[315211422,1708938644693,-182.85476532,0.00019492,2]
[315211423,1708938644702,-153.0,0.000195,2]
[315211424,1708938644711,-431.2948905,0.000195,2]
[315211425,1708938644721,-240.7634129,0.000195,2]
[315211426,1708938644730,-3384.81215471,0.00019527,2]
[315211427,1708938644740,-641.27,0.00019566,2]
[315211428,1708938644749,-9602.07581363,0.00019567,2]
[315211429,1708938644758,-300.0,0.00019584,2]
[315211430,1708938644767,-24314.32664584,0.00019588,2]
[315211431,1708938644776,-151.0,0.00019588,2]
[315211432,1708938644785,-166.666666,0.00019627,2]
[315211433,1708938644794,-621.03277362,0.00019676,2]
[315211434,1708938644803,-3384.81215469,0.0001968,2]
[315211435,1708938644813,-5529.96122929,0.000197,2]
[315211436,1708938644822,-5529.96122929,0.000197,2]
[315211437,1708938644838,-5529.96122929,0.000197,2]
[315211439,1708938644848,-183.66224649,0.00019718,2]
[315211440,1708938644869,-116.33775351,0.00019718,2]
[315211441,1708938644878,-400.92206194,0.00019725,2]
[315211442,1708938644890,-240.34793806,0.00019725,2]
[315211443,1708938644899,-641.27,0.00019725,2]
[315211444,1708938644908,-641.27,0.00019725,2]
[315211445,1708938644918,-500.0,0.00019726,2]
[315211447,1708938644927,-500.0,0.00019726,2]
[315211448,1708938645011,-500.0,0.00019726,2]
[315211449,1708938645030,-500.0,0.00019726,2]
[315211450,1708938645039,-261.27017344,0.00019726,2]
[315211451,1708938645050,-238.72982656,0.00019726,2]
[315211452,1708938645060,-1250.73,0.00019726,2]
[315211453,1708938645069,-500.0,0.00019726,2]
[315211454,1708938645078,-492.25353522,0.00019726,2]
[315211455,1708938645087,-502.80510749,0.00019726,2]
[315211456,1708938645097,-500.0,0.00019726,2]
[315211457,1708938645107,-500.0,0.00019726,2]
[315211458,1708938645116,-500.0,0.00019726,2]
[315211459,1708938645125,-500.0,0.00019726,2]
[315211460,1708938645134,-500.0,0.00019726,2]
[315211461,1708938645143,-503.89798039,0.00019726,2]
[315211462,1708938645153,-151.0,0.00019726,2]
[315211463,1708938645162,-1733.61,0.00019726,2]
[315211464,1708938645171,-728.38,0.00019726,2]
[315211465,1708938645181,-500.0,0.00019726,2]
[315211466,1708938645194,-500.0,0.00019726,2]
[315211467,1708938645203,-500.0,0.00019726,2]
[315211468,1708938645213,-666.81,0.00019726,2]
[315211469,1708938645224,-500.0,0.00019726,2]
[315211470,1708938645234,-500.0,0.00019726,2]
[315211471,1708938645243,-500.0,0.00019726,2]